fUSD/lending_fUSD_20241219
["ID","MTS","AMOUNT","RATE_DAILY","PERIOD"]
[345965450,1734573036883,-500.0,0.00024271,4]
[345965451,1734573036892,-500.0,0.00024271,4]
[345965452,1734573036901,-500.0,0.00024271,4]
[345965453,1734573036910,-500.0,0.00024271,4]
[345965454,1734573036919,-500.0,0.00024271,4]
[345965455,1734573036929,-500.0,0.00024271,4]
[345965456,1734573036938,-514.33,0.00024271,4]
[345965457,1734573036947,-500.0,0.00024271,4]
[345965458,1734573036956,-1000.0,0.00024271,5]
[345965459,1734573036965,-500.0,0.00024271,4]
[345965460,1734573036976,-500.0,0.00024271,4]
[345965461,1734573036985,-527.31465464,0.00024271,4]
[345965462,1734573036994,-500.0,0.00024271,4]
[345965463,1734573037003,-500.0,0.00024271,4]
[345965464,1734573037013,-500.0,0.00024271,4]
[345965465,1734573037025,-500.0,0.00024271,4]
[345965466,1734573037035,-618.29,0.00024271,4]
[345965467,1734573037044,-500.0,0.00024271,4]
[345965468,1734573037053,-500.0,0.00024271,4]
[345965469,1734573037063,-707.95,0.00024271,4]
[345965470,1734573037073,-500.0,0.00024271,4]
[345965471,1734573037083,-507.18157596,0.00024272,4]
[345965472,1734573037093,-378.13246827,0.00024272,4]
[345965473,1734573037106,-500.0,0.00024272,4]
[345965474,1734573037115,-392.88857702,0.00024272,4]
[345965475,1734573037125,-500.0,0.00024272,4]
[345965476,1734573037134,-538.60685838,0.00024272,4]
[345965477,1734573037143,-500.0,0.00024272,4]
[345965478,1734573037154,-500.0,0.00024272,4]
[345965479,1734573037163,-500.0,0.00024272,4]
[345965480,1734573037173,-500.0,0.00024272,4]
[345965481,1734573037183,-500.0,0.00024272,4]
[345965482,1734573037192,-500.0,0.00024272,4]
[345965483,1734573037202,-500.0,0.00024272,4]
[345965484,1734573037212,-500.0,0.00024272,4]
[345965485,1734573037222,-644.95,0.00024272,4]
[345965486,1734573037233,-500.0,0.00024272,4]
[345965487,1734573037243,-1060.62,0.00024272,4]
[345965488,1734573037252,-1129.56,0.00024272,4]
[345965489,1734573037262,-740.11,0.00024272,4]
[345965490,1734573037271,-1228.4,0.00024272,4]
[345965491,1734573037282,-615.26,0.00024272,4]
[345965492,1734573037293,-1429.25,0.00024272,4]
[345965493,1734573037303,-500.0,0.00024272,4]
[345965494,1734573037313,-1729.99,0.00024272,4]
[345965495,1734573037322,-2543.03,0.00024272,4]
[345965496,1734573037332,-757.68,0.00024272,4]
[345965497,1734573037342,-595.03,0.00024272,4]
[345965498,1734573037352,-500.0,0.00024272,4]
[345965499,1734573037361,-1355.3,0.00024272,4]
[345965500,1734573037370,-5106.94,0.00024272,4]
[345965501,1734573037379,-500.0,0.00024272,4]
[345965502,1734573037389,-758.4,0.00024272,4]
[345965503,1734573037400,-1403.52,0.00024272,4]
[345965504,1734573037410,-685.89,0.00024272,4]
[345965505,1734573037419,-500.0,0.00024272,4]
[345965506,1734573037428,-1000.0,0.00024272,4]
[345965507,1734573037437,-500.0,0.00024273,4]
[345965508,1734573037446,-500.0,0.00024273,4]
[345965509,1734573037455,-587.97,0.00024273,4]
[345965510,1734573037464,-500.0,0.00024273,4]
[345965511,1734573037473,-500.0,0.00024273,4]
[345965512,1734573037482,-500.0,0.00024273,4]
[345965513,1734573037491,-500.0,0.00024273,4]
[345965514,1734573037500,-500.0,0.00024273,4]
[345965515,1734573037509,-500.0,0.00024273,4]
[345965516,1734573037518,-1030.5,0.00024273,4]
[345965517,1734573037527,-584.63,0.00024273,4]
[345965518,1734573037537,-1118.04,0.00024273,4]
[345965519,1734573037546,-500.0,0.00024273,4]
[345965520,1734573037555,-500.0,0.00024273,4]
[345965521,1734573037565,-629.92,0.00024273,4]
[345965522,1734573037573,-500.0,0.00024273,4]
[345965523,1734573037583,-500.0,0.00024273,4]
[345965524,1734573037592,-786.65,0.00024273,4]
[345965525,1734573037602,-500.0,0.00024273,4]
[345965526,1734573037612,-1124.46,0.00024273,4]
[345965527,1734573037621,-622.95,0.00024273,4]
[345965528,1734573037630,-500.0,0.00024273,4]
[345965529,1734573037639,-500.0,0.00024273,4]
[345965530,1734573037648,-500.0,0.00024273,4]
[345965531,1734573037661,-1460.37,0.00024273,4]
[345965533,1734573037670,-641.42,0.00024273,4]
[345965534,1734573037679,-189.920817,0.00024273,4]
[345965535,1734573037688,-2987.237209,0.00024273,4]
[345965536,1734573037698,-4480.371337,0.00024273,4]
[345965537,1734573037707,-500.0,0.00024273,4]
[345965538,1734573037716,-500.0,0.00024273,4]
[345965539,1734573037725,-858.72,0.00024273,4]
[345965540,1734573037734,-500.0,0.00024273,4]
[345965541,1734573037745,-500.0,0.00024273,4]
[345965542,1734573037755,-500.0,0.00024273,4]
[345965543,1734573037764,-976.42,0.00024273,4]
[345965544,1734573037774,-613.02,0.00024273,4]
[345965546,1734573037783,-500.0,0.00024273,4]
[345965548,1734573037793,-500.0,0.00024273,4]
[345965549,1734573037802,-828.53,0.00024273,4]
[345965551,1734573037812,-500.0,0.00024273,4]
[345965553,1734573037821,-1724.81,0.00024273,4]
[345965554,1734573037831,-500.0,0.00024273,4]
[345965555,1734573037841,-875.11,0.00024273,4]
[345965556,1734573037850,-500.0,0.00024273,4]
[345965557,1734573037860,-838.06,0.00024273,4]
[345965558,1734573037870,-500.0,0.00024273,4]
[345965559,1734573037879,-1568.17,0.00024273,4]
[345965560,1734573037888,-500.0,0.00024273,4]
[345965561,1734573037898,-500.0,0.00024273,4]
[345965562,1734573037907,-924.39,0.00024273,4]
[345965563,1734573037916,-1217.62,0.00024273,4]
[345965564,1734573037926,-789.91,0.00024273,4]
[345965565,1734573037935,-596.35,0.00024273,4]
[345965566,1734573037944,-500.0,0.00024273,4]
[345965567,1734573037954,-620.66,0.00024273,4]
[345965568,1734573037963,-500.0,0.00024273,4]
[345965569,1734573037973,-1037.69,0.00024273,4]
[345965570,1734573037982,-1443.76,0.00024273,4]
[345965571,1734573037991,-500.0,0.00024273,4]
[345965572,1734573038000,-727.55,0.00024273,4]
[345965573,1734573038010,-1113.63,0.00024273,4]
[345965574,1734573038019,-782.22,0.00024273,4]
[345965575,1734573038028,-813.7,0.00024273,4]
[345965576,1734573038037,-500.0,0.00024273,4]
[345965577,1734573038047,-500.0,0.00024273,4]
[345965578,1734573038056,-2172.84322314,0.00024273,4]
[345965579,1734573038489,-318.03,0.00024273,4]
[345965580,1734573038500,-1142.93547708,0.00024273,4]
[345965581,1734573038526,-12.42129978,0.00024273,4]
[345965582,1734573038535,-510.60940242,0.00024273,4]
[345965583,1734573039115,-2544.61658396,0.00024273,4]
[345965584,1734573039129,-98.11401362,0.00024273,4]
[345965585,1734573039138,-500.0,0.00024273,4]
[345965586,1734573039147,-1566.77,0.00024273,4]
[345965587,1734573039157,-500.0,0.00024273,4]
[345965588,1734573039167,-788.39,0.00024273,4]
[345965589,1734573039176,-500.0,0.00024273,4]
[345965590,1734573039186,-288.72122615,0.00024273,4]
[345965591,1734573039196,-507.26,0.00024273,4]
[345965592,1734573039205,-1552.96,0.00024273,4]
[345965593,1734573039215,-500.0,0.00024273,4]
[345965594,1734573039224,-500.0,0.00024273,4]
[345965595,1734573039234,-620.17,0.00024273,4]
[345965596,1734573039243,-500.0,0.00024273,4]
[345965597,1734573039253,-500.0,0.00024273,4]
[345965598,1734573039262,-151.0,0.00024284,7]
[345965599,1734573039271,-277.969166,0.00024284,7]
[345965600,1734573039281,-277.969166,0.00024284,7]
[345965601,1734573039290,-151.0,0.00024284,7]
[345965602,1734573039299,-557.617,0.00024284,2]
[345965603,1734573039308,-1317.564,0.00024284,2]
[345965604,1734573039317,-490.99,0.00024284,2]
[345965605,1734573039327,-592.54188973,0.00024284,2]
[345965606,1734573039339,-117.87111027,0.00024284,2]
[345965607,1734573039348,-604.25889273,0.00024284,2]
[345965608,1734573039361,-2440.26410727,0.00024284,2]
[345965609,1734573039370,-13821.663,0.00024284,2]
[345965610,1734573039380,-1175.298,0.00024284,2]
[345965611,1734573039390,-3914.234,0.00024284,2]
[345965612,1734573039399,-151.591,0.00024284,2]
[345965613,1734573039408,-247.0,0.0002433,2]
[345965614,1734573039418,-594.34,0.00024356,4]
[345965615,1734573039428,-500.0,0.00024356,4]
[345965616,1734573039437,-1626.01,0.00024356,4]
[345965617,1734573039448,-624.7,0.00024356,4]
[345965618,1734573039457,-500.0,0.00024356,4]
[345965619,1734573039466,-777.54,0.00024356,4]
[345965620,1734573039476,-500.0,0.00024356,4]
[345965621,1734573039486,-777.9,0.00024356,4]
[345965622,1734573039495,-600.68,0.00024356,4]
[345965623,1734573039504,-515.88,0.00024356,4]
[345965624,1734573039514,-500.0,0.00024356,4]
[345965625,1734573039523,-500.0,0.00024356,4]
[345965626,1734573039533,-500.0,0.00024356,4]
[345965627,1734573039542,-500.0,0.00024356,4]
[345965628,1734573039552,-500.0,0.00024356,4]
[345965629,1734573039561,-1528.8,0.00024356,4]
[345965630,1734573039571,-500.0,0.00024356,4]
[345965631,1734573039581,-500.0,0.00024356,4]
[345965632,1734573039590,-500.0,0.00024356,4]
[345965633,1734573039599,-500.0,0.00024356,4]
[345965634,1734573039612,-500.0,0.00024356,4]
[345965635,1734573039621,-518.28210067,0.00024356,4]
[345965636,1734573039630,-500.0,0.00024356,4]
[345965637,1734573039640,-812.01,0.00024356,4]
[345965638,1734573039650,-500.0,0.00024356,4]
[345965639,1734573039661,-500.0,0.00024356,4]
[345965640,1734573039674,-10.10480235,0.00024356,4]
[345965641,1734573039687,-489.89519765,0.00024356,4]
[345965642,1734573039696,-80.17830721,0.00024356,4]
[345965643,1734573039709,-419.82169279,0.00024356,4]
[345965644,1734573039720,-135.38322039,0.00024356,4]
[345965645,1734573039732,-364.61677961,0.00024356,4]
[345965646,1734573039743,-500.0,0.00024356,4]
[345965647,1734573039753,-1045.89,0.00024356,4]
[345965648,1734573039764,-933.3,0.00024356,4]
[345965649,1734573039773,-214.30009694,0.00024356,4]
[345965650,1734573039783,-543.45,0.00024356,4]
[345965651,1734573039792,-500.0,0.00024356,4]
[345965652,1734573039802,-500.0,0.00024356,4]
[345965653,1734573039811,-749.64,0.00024356,4]
[345965654,1734573039820,-500.0,0.00024356,4]
[345965655,1734573039829,-500.0,0.00024356,4]
[345965656,1734573039839,-500.0,0.00024356,4]
[345965657,1734573039848,-500.0,0.00024356,4]
[345965658,1734573039860,-151.0,0.00024356,7]
[345965659,1734573039870,-153.971601,0.00024356,7]
[345965660,1734573039879,-716.0,0.00024356,4]
[345965661,1734573039888,-1206.26,0.00024356,4]
[345965662,1734573039897,-500.0,0.00024356,4]
[345965663,1734573039907,-1229.81,0.00024356,4]
[345965664,1734573039916,-760.69,0.00024356,4]
[345965665,1734573039928,-500.0,0.00024356,4]
[345965666,1734573039939,-500.0,0.00024356,4]
[345965667,1734573039948,-318.66703522,0.00024356,4]
[345965668,1734573039959,-500.0,0.00024356,4]
[345965669,1734573039969,-500.0,0.00024356,4]
[345965670,1734573039979,-500.0,0.00024356,4]
[345965671,1734573039988,-500.0,0.00024356,4]
[345965672,1734573039997,-842.86,0.00024356,4]
[345965673,1734573040007,-641.51,0.00024356,4]
[345965674,1734573040016,-500.0,0.00024356,4]
[345965675,1734573040025,-855.99,0.00024356,4]
[345965676,1734573040035,-586.43,0.00024356,4]
[345965677,1734573040044,-596.25,0.00024356,4]
[345965679,1734573040054,-500.0,0.00024356,4]
[345965682,1734573040064,-852.78,0.00024356,4]
[345965684,1734573040074,-677.55,0.00024356,4]
[345965685,1734573040083,-1033.1,0.00024356,4]
[345965687,1734573040093,-596.37,0.00024356,4]
[345965688,1734573040107,-1421.78,0.00024356,4]
[345965689,1734573040117,-684.6,0.00024356,4]
[345965690,1734573040127,-500.0,0.00024356,4]
[345965691,1734573040137,-566.09,0.00024356,4]
[345965692,1734573040147,-500.0,0.00024356,4]
[345965693,1734573040156,-658.57,0.00024356,4]
[345965694,1734573040166,-500.0,0.00024356,4]
[345965695,1734573040175,-738.35,0.00024356,4]
[345965696,1734573040185,-1631.66,0.00024356,4]
[345965697,1734573040194,-1314.84,0.00024356,4]
[345965698,1734573040204,-500.0,0.00024356,4]
[345965699,1734573040213,-500.0,0.00024356,4]
[345965700,1734573040223,-694.37,0.00024356,4]
[345965701,1734573040234,-500.0,0.00024356,4]
[345965702,1734573040244,-500.0,0.00024356,4]
[345965703,1734573040254,-2411.88,0.00024356,4]
[345965704,1734573040264,-806.8,0.00024356,4]
[345965705,1734573040273,-151.0,0.00024356,7]
[345965706,1734573040283,-620.13,0.00024356,4]
[345965707,1734573040292,-161.7388,0.00024356,7]
[345965708,1734573040302,-2084.55,0.00024356,4]
[345965709,1734573040312,-1930.15,0.00024356,4]
[345965710,1734573040322,-1048.63,0.00024356,2]
[345965711,1734573040331,-500.0,0.00024356,4]
[345965712,1734573040340,-500.0,0.00024356,4]
[345965713,1734573040350,-579.19,0.00024356,4]
[345965714,1734573040368,-530.84,0.00024356,4]
[345965715,1734573040378,-992.46,0.00024356,4]
[345965716,1734573040389,-500.56,0.00024356,4]
[345965717,1734573040399,-555.59218271,0.00024356,4]
[345965718,1734573040409,-500.0,0.00024356,4]
[345965719,1734573040420,-152.49963584,0.00024381,2]
[345965720,1734573040430,-150.0,0.00024461,2]
[345965721,1734573040441,-933.608643,0.00024498,14]
[345965722,1734573040450,-3999.29,0.000245,2]
[345965723,1734573040461,-15445.11540293,0.000245,2]
[345965724,1734573040474,-35567.0069758,0.000245,2]
[345965725,1734573040484,-109681.8367577,0.000245,2]
[345965726,1734573040494,-1923.53447526,0.000245,2]
[345965727,1734573040503,-19880.62533779,0.000245,2]
[345965728,1734573040513,-150.0,0.000245,2]
[345965729,1734573040523,-1380.0,0.000245,2]
[345965730,1734573040533,-151.0,0.000245,7]
[345965731,1734573040543,-151.0,0.000245,7]
[345965732,1734573040553,-277.969166,0.000245,7]
[345965733,1734573040562,-277.969166,0.000245,7]
[345965734,1734573040572,-151.0,0.000245,7]
[345965735,1734573040582,-151.0,0.000245,7]
[345965736,1734573040591,-151.0,0.000245,7]
[345965737,1734573040601,-460.0,0.000245,2]
[345965738,1734573040618,-2506.93,0.00024501,2]
[345965739,1734573040627,-1118.51,0.00024505,4]
[345965740,1734573040637,-2200.0,0.00024505,4]
[345965741,1734573040646,-723.21,0.00024505,4]
[345965742,1734573040657,-500.0,0.00024545,4]
[345965743,1734573040667,-500.0,0.00024545,4]
[345965744,1734573040679,-500.0,0.00024545,4]
[345965745,1734573040689,-500.0,0.00024545,4]
[345965746,1734573040698,-500.0,0.00024545,4]
[345965747,1734573040710,-500.0,0.00024545,4]
[345965748,1734573040720,-500.0,0.00024545,4]
[345965749,1734573040729,-509.525117,0.00024545,4]
[345965750,1734573040741,-500.0,0.00024545,4]
[345965751,1734573040751,-213.45320885,0.00024545,4]
[345965752,1734573040761,-500.0,0.00024545,4]
[345965753,1734573040770,-500.0,0.00024545,4]
[345965754,1734573040779,-500.0,0.00024545,4]
[345965755,1734573040789,-500.0,0.00024545,4]
[345965756,1734573040799,-500.0,0.00024545,4]
[345965757,1734573040809,-540.08,0.00024545,4]
[345965758,1734573040818,-500.0,0.00024545,4]
[345965759,1734573040827,-504.15433941,0.00024545,4]
[345965760,1734573040837,-500.0,0.00024545,4]
[345965761,1734573040847,-500.0,0.00024545,4]
[345965762,1734573040859,-690.09,0.00024545,4]
[345965763,1734573040868,-567.57,0.00024545,4]
[345965764,1734573040878,-500.0,0.00024545,4]
[345965765,1734573040889,-500.0,0.00024545,4]
[345965766,1734573040899,-500.0,0.00024545,4]
[345965767,1734573040909,-500.0,0.00024545,4]
[345965768,1734573040918,-500.0,0.00024545,4]
[345965769,1734573040928,-500.0,0.00024545,4]
[345965770,1734573040938,-500.0,0.00024545,4]
[345965771,1734573040947,-500.0,0.00024545,4]
[345965772,1734573040956,-500.0,0.00024545,4]
[345965773,1734573040967,-500.0,0.00024545,4]
[345965774,1734573040976,-538.69,0.00024545,4]
[345965775,1734573040986,-500.0,0.00024545,4]
[345965776,1734573040995,-500.0,0.00024545,4]
[345965777,1734573041004,-780.19,0.00024545,4]
[345965778,1734573041014,-500.0,0.00024545,4]
[345965779,1734573041024,-410.05619225,0.00024545,4]
[345965780,1734573041033,-500.0,0.00024545,4]
[345965781,1734573041042,-1572.96,0.00024545,4]
[345965782,1734573041051,-500.0,0.00024545,4]
[345965783,1734573041061,-500.0,0.00024545,4]
[345965784,1734573041070,-500.0,0.00024545,4]
[345965785,1734573041080,-500.0,0.00024545,4]
[345965786,1734573041089,-500.0,0.00024545,4]
[345965787,1734573041098,-500.0,0.00024545,4]
[345965788,1734573041110,-500.0,0.00024545,4]
[345965789,1734573041119,-576.03,0.00024545,4]
[345965790,1734573041129,-636.69,0.00024545,4]
[345965791,1734573041138,-500.0,0.00024545,4]
[345965792,1734573041147,-500.0,0.00024545,4]
[345965793,1734573041156,-500.0,0.00024545,4]
[345965794,1734573041166,-500.0,0.00024545,4]
[345965795,1734573041175,-811.82,0.00024545,4]
[345965796,1734573041184,-500.0,0.00024545,4]
[345965797,1734573041194,-500.0,0.00024545,4]
[345965798,1734573041204,-633.25,0.00024545,4]
[345965799,1734573041213,-500.0,0.00024545,4]
[345965800,1734573041223,-500.0,0.00024545,4]
[345965801,1734573041234,-500.0,0.00024545,4]
[345965802,1734573041244,-610.36,0.00024545,4]
[345965803,1734573041254,-500.0,0.00024545,4]
[345965804,1734573041264,-1020.47,0.00024545,4]
[345965805,1734573041273,-500.0,0.00024545,4]
[345965806,1734573041283,-500.0,0.00024545,4]
[345965807,1734573041292,-511.8421308,0.00024545,4]
[345965808,1734573041301,-1174.06,0.00024545,4]
[345965809,1734573041312,-500.0,0.00024545,4]
[345965810,1734573041322,-500.0,0.00024545,4]
[345965811,1734573041331,-500.0,0.00024545,4]
[345965812,1734573041340,-500.0,0.00024545,4]
[345965813,1734573041350,-500.0,0.00024545,4]
[345965814,1734573041362,-500.0,0.00024545,4]
[345965815,1734573041371,-500.0,0.00024545,4]
[345965816,1734573041380,-500.0,0.00024545,4]
[345965817,1734573041390,-500.0,0.00024545,4]
[345965818,1734573041399,-500.0,0.00024545,4]
[345965819,1734573041409,-514.33,0.00024545,4]
[345965820,1734573041419,-500.0,0.00024545,4]
[345965821,1734573041428,-1000.0,0.00024545,5]
[345965822,1734573041438,-500.0,0.00024545,4]
[345965823,1734573041447,-500.0,0.00024545,4]
[345965824,1734573041456,-500.0,0.00024545,4]
[345965825,1734573041466,-500.0,0.00024545,4]
[345965826,1734573041475,-500.0,0.00024545,4]
[345965827,1734573041484,-500.0,0.00024545,4]
[345965828,1734573041493,-618.29,0.00024545,4]
[345965829,1734573041503,-500.0,0.00024545,4]
[345965830,1734573041513,-500.0,0.00024545,4]
[345965831,1734573041522,-707.95,0.00024545,4]
[345965832,1734573041532,-500.0,0.00024545,4]
[345965833,1734573041542,-500.0,0.00024546,4]
[345965834,1734573041551,-500.0,0.00024546,4]
[345965835,1734573041560,-500.0,0.00024546,4]
[345965836,1734573041570,-500.0,0.00024546,4]
[345965837,1734573041579,-500.0,0.00024546,4]
[345965838,1734573041589,-500.0,0.00024546,4]
[345965839,1734573041599,-500.0,0.00024546,4]
[345965840,1734573041610,-500.0,0.00024546,4]
[345965841,1734573041621,-500.0,0.00024546,4]
[345965842,1734573041630,-274.207496,0.00024546,7]
[345965843,1734573041639,-277.969166,0.00024546,7]
[345965844,1734573041648,-277.969166,0.00024546,7]
[345965845,1734573041663,-151.0,0.00024546,7]
[345965846,1734573041674,-644.95,0.00024546,4]
[345965847,1734573041686,-500.0,0.00024546,4]
[345965848,1734573041695,-1060.62,0.00024546,4]
[345965849,1734573041706,-151.0,0.00024546,7]
[345965850,1734573041715,-1129.56,0.00024546,4]
[345965851,1734573041725,-740.11,0.00024546,4]
[345965852,1734573041737,-1228.4,0.00024546,4]
[345965853,1734573041747,-615.26,0.00024546,4]
[345965854,1734573041757,-1429.25,0.00024546,4]
[345965855,1734573041766,-500.0,0.00024546,4]
[345965856,1734573041775,-1729.99,0.00024546,4]
[345965857,1734573041784,-2543.03,0.00024546,4]
[345965858,1734573041794,-757.68,0.00024546,4]
[345965859,1734573041980,-595.03,0.00024546,4]
[345965860,1734573041991,-500.0,0.00024546,4]
[345965861,1734573042000,-1355.3,0.00024546,4]
[345965862,1734573042010,-5106.94,0.00024546,4]
[345965863,1734573042021,-500.0,0.00024546,4]
[345965864,1734573042030,-758.4,0.00024546,4]
[345965865,1734573042040,-1403.52,0.00024546,4]
[345965866,1734573042049,-685.89,0.00024546,4]
[345965867,1734573042059,-500.0,0.00024546,4]
[345965868,1734573042068,-1000.0,0.00024546,4]
[345965869,1734573042078,-500.0,0.00024547,4]
[345965870,1734573042087,-587.97,0.00024547,4]
[345965871,1734573042097,-241.43199006,0.00024547,4]
[345965872,1734573042107,-500.0,0.00024547,4]
[345965873,1734573042117,-500.0,0.00024547,4]
[345965874,1734573042127,-500.0,0.00024547,4]
[345965875,1734573042136,-500.0,0.00024547,4]
[345965876,1734573042146,-500.0,0.00024547,4]
[345965877,1734573042155,-1030.5,0.00024547,4]
[345965878,1734573042165,-584.63,0.00024547,4]
[345965879,1734573042175,-1118.04,0.00024547,4]
[345965880,1734573042184,-500.0,0.00024547,4]
[345965881,1734573042193,-500.0,0.00024547,4]
[345965882,1734573042202,-629.92,0.00024547,4]
[345965883,1734573042212,-500.0,0.00024547,4]
[345965884,1734573042222,-500.0,0.00024547,4]
[345965885,1734573042231,-786.65,0.00024547,4]
[345965886,1734573042240,-500.0,0.00024547,4]
[345965887,1734573042250,-1124.46,0.00024547,4]
[345965888,1734573042259,-622.95,0.00024547,4]
[345965889,1734573042268,-500.0,0.00024547,4]
[345965890,1734573042278,-500.0,0.00024547,4]
[345965891,1734573042287,-169.52645077,0.00024547,4]
[345965892,1734573042296,-1460.37,0.00024547,4]
[345965893,1734573042306,-641.42,0.00024547,4]
[345965894,1734573042317,-189.920817,0.00024547,4]
[345965895,1734573042327,-4480.371337,0.00024547,4]
[345965896,1734573042336,-2987.237209,0.00024547,4]
[345965897,1734573042347,-500.0,0.00024547,4]
[345965898,1734573042357,-500.0,0.00024547,4]
[345965899,1734573042366,-858.72,0.00024547,4]
[345965900,1734573042375,-500.0,0.00024547,4]
[345965901,1734573042385,-500.0,0.00024547,4]
[345965902,1734573042395,-500.0,0.00024547,4]
[345965903,1734573042406,-976.42,0.00024547,4]
[345965904,1734573042415,-613.02,0.00024547,4]
[345965905,1734573042426,-500.0,0.00024547,4]
[345965906,1734573042436,-500.0,0.00024547,4]
[345965907,1734573042446,-828.53,0.00024547,4]
[345965908,1734573042456,-500.0,0.00024547,4]
[345965909,1734573042465,-1724.81,0.00024547,4]
[345965910,1734573042474,-500.0,0.00024547,4]
[345965911,1734573042484,-875.11,0.00024547,4]
[345965912,1734573042493,-500.0,0.00024547,4]
[345965913,1734573042503,-838.06,0.00024547,4]
[345965914,1734573042512,-500.0,0.00024547,4]
[345965915,1734573042521,-1568.17,0.00024547,4]
[345965916,1734573042530,-500.0,0.00024547,4]
[345965917,1734573042540,-500.0,0.00024547,4]
[345965918,1734573042549,-924.39,0.00024547,4]
[345965919,1734573042558,-1217.62,0.00024547,4]
[345965920,1734573042567,-789.91,0.00024547,4]
[345965921,1734573042577,-596.35,0.00024547,4]
[345965922,1734573042586,-500.0,0.00024547,4]
[345965923,1734573042596,-620.66,0.00024547,4]
[345965924,1734573042605,-500.0,0.00024547,4]
[345965925,1734573042615,-1037.69,0.00024547,4]
[345965926,1734573042624,-1443.76,0.00024547,4]
[345965927,1734573042633,-500.0,0.00024547,4]
[345965928,1734573042642,-727.55,0.00024547,4]
[345965929,1734573042652,-1113.63,0.00024547,4]
[345965930,1734573042661,-151.0,0.00024547,7]
[345965931,1734573042674,-782.22,0.00024547,4]
[345965932,1734573042685,-813.7,0.00024547,4]
[345965934,1734573042694,-500.0,0.00024547,4]
[345965935,1734573042704,-500.0,0.00024547,4]
[345965936,1734573042716,-3646.23,0.00024547,4]
[345965937,1734573042725,-3153.34,0.00024547,4]
[345965938,1734573042735,-500.0,0.00024547,4]
[345965939,1734573042747,-1566.77,0.00024547,4]
[345965940,1734573042756,-500.0,0.00024547,4]
[345965941,1734573042765,-788.39,0.00024547,4]
[345965942,1734573042774,-500.0,0.00024547,4]
[345965943,1734573042783,-507.26,0.00024547,4]
[345965944,1734573042792,-290.80480271,0.00024547,4]
[345965945,1734573042802,-1552.96,0.00024547,4]
[345965946,1734573042811,-512.90488194,0.00024547,4]
[345965947,1734573042820,-620.17,0.00024547,4]
[345965948,1734573042829,-500.0,0.00024547,4]
[345965949,1734573042839,-500.0,0.00024547,4]
[345965950,1734573042848,-353.79,0.00024548,2]
[345965952,1734573042858,-666.87462668,0.0002459,3]
[345965954,1734573042867,-2403.68237237,0.000246,2]
[345965956,1734573042876,-677.94236214,0.000246,2]
[345965957,1734573042886,-24806.61380058,0.00024625,2]
[345965958,1734573042895,-594.34,0.0002463,4]
[345965959,1734573042904,-500.0,0.0002463,4]
[345965960,1734573042913,-1626.01,0.0002463,4]
[345965961,1734573042922,-624.7,0.0002463,4]
[345965962,1734573042932,-500.0,0.0002463,4]
[345965963,1734573042941,-777.54,0.0002463,4]